bitfinex/quotes_SOLUSD_20241010
["timestamp","ask_amount","ask_price","bid_price","bid_amount"]
[1728568039207,7.2307,138.3,138.25,25.3156]
[1728568039391,7.2313,138.29,138.25,18.0824]
[1728568039705,18.0745,138.32,138.22,18.0866]
[1728568039887,7.2307,138.3,138.25,7.2329]
[1728568040194,6.4287,138.33,138.19,52.126]
[1728568040195,7.2301,138.31,138.19,52.126]
[1728568040386,6.4287,138.33,138.27,7.2318]
[1728568040387,31.006484,138.32,138.27,7.2318]
[1728568040696,7.2303,138.31,138.27,7.2318]
[1728568040895,7.2303,138.31,138.26,25.3138]
[1728568041104,7.2318,138.28,138.24,7.2337]
[1728568041399,7.2318,138.28,138.23,18.085]
[1728568041602,7.2318,138.28,138.24,7.2336]
[1728568041782,7.2318,138.28,138.23,18.085]
[1728568042105,7.2322,138.27,138.23,25.3191]
[1728568042277,7.2318,138.28,138.23,25.3191]
[1728568042585,20.0,138.31,138.19,52.126]
[1728568042586,7.2331,138.26,138.21,7.2352]
[1728568043984,20.25098,138.29,138.2,18.0888]
[1728568044279,7.2334,138.25,138.21,7.2352]
[1728568044476,56.1509,138.31,138.16,42.6301]
[1728568044477,20.0,138.31,138.22,18.0865]
[1728568044682,20.0,138.31,138.24,7.2334]
[1728568044886,7.2329,138.26,138.22,25.3211]
[1728568045090,7.2327,138.26,138.22,25.3211]
[1728568045483,7.2336,138.25,138.21,7.2352]
[1728568046089,7.2328,138.26,138.22,7.2347]
[1728568047307,7.2328,138.26,138.22,8.6815208]
[1728568047494,7.2328,138.26,138.22,7.2347]
[1728568048387,23.776884,138.27,138.18,18.0915]
[1728568048780,7.2341,138.24,138.2,7.2357]
[1728568050705,7.2343,138.23,138.19,7.2362]
[1728568050897,7.2339,138.24,138.2,7.2358]
[1728568051096,7.2344,138.23,138.19,7.2363]
[1728568051791,7.2339,138.24,138.19,7.2363]
[1728568051994,7.2344,138.23,138.19,7.2363]
[1728568052205,20.0,138.29,138.13,36.1952]
[1728568052206,23.776884,138.22,138.14,20.8250125]
[1728568052495,23.776884,138.22,138.17,18.0933]
[1728568052724,7.2354,138.21,138.17,25.3303]
[1728568052886,6.0861,138.28,138.21,18.0881]
[1728568053087,7.2328,138.26,138.22,7.2347]
[1728568053290,6.0861,138.28,138.22,7.2347]
[1728568053803,6.0861,138.28,138.2,7.2357]
[1728568054009,7.2338,138.24,138.2,7.2357]
[1728568054309,7.2343,138.23,138.19,7.2362]
[1728568054515,7.2338,138.24,138.2,7.2355]
[1728568054883,23.776884,138.24,138.21,7.2353]
[1728568055699,7.2349,138.22,138.18,7.2365]
[1728568055882,23.776884,138.24,138.19,7.2359]
[1728568055883,7.2344,138.23,138.19,7.2359]
[1728568056307,23.776884,138.24,138.17,18.0924]
[1728568056606,7.2344,138.23,138.19,7.2363]
[1728568056810,23.776884,138.22,138.19,7.2363]
[1728568058996,7.2344,138.23,138.19,7.2363]
[1728568059380,23.776884,138.24,138.21,7.2352]
[1728568059911,31.010684,138.24,138.2,7.2356]
[1728568061791,6.3905,138.21,138.12,7.54060941]
[1728568062115,6.3905,138.21,138.1,16.5542]
[1728568062116,23.776884,138.16,138.13,18.0977]
[1728568062318,24.479,138.21,138.02,1.25958512]
[1728568062319,0.12549,138.14,138.02,1.25958512]
[1728568062493,6.4976,138.13,138.0,0.8250125]
[1728568062696,20.0,138.12,138.06,18.1069]
[1728568062889,20.0,138.12,138.02,7.54485557]
[1728568062890,7.2422,138.08,138.03,25.356]
[1728568063088,7.2427,138.07,138.03,18.1113]
[1728568063392,38.1014,138.12,138.0,0.8250125]
[1728568063393,7.2434,138.06,138.0,0.8250125]
[1728568063599,7.2444,138.04,138.0,0.8250125]
[1728568063809,7.2427,138.07,138.02,7.2452]
[1728568064008,7.2427,138.07,138.02,7.2453]
[1728568064212,23.776884,138.06,138.01,18.1136]
[1728568064505,31.020184,138.06,138.01,25.3591]
[1728568065102,23.776884,138.06,138.02,1.44903158]
[1728568065301,23.776884,138.06,138.01,25.3589]
[1728568065523,23.776884,138.06,138.02,7.2452]
[1728568066320,31.020084,138.06,138.01,25.3593]
[1728568066824,18.22809,138.11,138.01,18.1136]
[1728568067115,7.2412,138.1,138.05,7.2437]
[1728568067329,20.0,138.12,138.06,7.243]
[1728568067330,27.2405,138.12,138.06,7.243]
[1728568067617,7.2405,138.12,138.04,18.1106]
[1728568067786,6.4976,138.13,138.06,18.1069]
[1728568067997,7.2401,138.12,138.07,7.2422]
[1728568069316,23.776884,138.12,138.06,18.1069]
[1728568069615,7.2412,138.1,138.05,7.2433]
[1728568069792,7.2406,138.11,138.07,7.2426]
[1728568069994,23.776884,138.12,138.08,7.242]
[1728568070314,6.2717,138.18,138.04,77.41385313]
[1728568070498,6.2717,138.18,138.11,18.1007]
[1728568070499,7.2375,138.17,138.11,18.1007]
[1728568070698,6.2717,138.18,138.11,18.1007]
[1728568070995,7.2382,138.16,138.11,25.3412]
[1728568071391,7.2391,138.14,138.09,7.2412]
[1728568071594,7.2389,138.15,138.1,7.2409]
[1728568072107,7.2391,138.14,138.09,7.2412]
[1728568072420,7.2391,138.14,138.1,7.241]
[1728568073128,23.776884,138.14,138.11,7.2405]
[1728568073422,7.2381,138.16,138.12,7.24]
[1728568073601,7.2375,138.17,138.1,18.1023]
[1728568073802,7.2383,138.16,138.11,7.24]
[1728568074215,7.2386,138.15,138.11,7.24]
[1728568074701,6.2717,138.18,138.1,18.1023]
[1728568074908,24.3646,138.18,138.07,18.106]
[1728568075116,7.2405,138.12,138.07,25.3481]
[1728568075313,7.241,138.11,138.07,18.106]
[1728568075625,45.707864,138.17,138.04,18.1099]
[1728568075812,7.2423,138.08,138.04,18.1099]
[1728568076013,20.0,138.16,138.0,0.8250125]
[1728568076208,7.2417,138.09,138.0,0.8250125]
[1728568076405,7.2415,138.1,138.05,7.2436]
[1728568076701,7.2416,138.09,138.05,7.2436]
[1728568076901,23.776884,138.11,138.04,7.2441]
[1728568077206,7.2437,138.05,138.0,18.9404125]
[1728568077408,23.776884,138.04,138.01,7.2456]
[1728568077607,23.776884,138.04,138.0,18.9404125]
[1728568077608,7.2428,138.07,138.03,7.2448]
[1728568078130,7.2428,138.07,138.02,25.3579]
[1728568078312,7.2431,138.07,138.02,25.3576]
[1728568078528,7.2457,138.02,138.0,0.8250125]
[1728568078837,15.1334,138.24,138.02,7.2457]
[1728568079003,15.1334,138.24,138.14,35.26026313]
[1728568079330,15.1334,138.24,138.15,25.3331]
[1728568079635,22.63673382,138.24,138.08,35.26026313]
[1728568079928,7.2348,138.22,138.16,7.2374]
[1728568080241,15.1334,138.24,138.11,35.26026313]
[1728568080419,15.1334,138.24,138.13,18.0976]
[1728568080720,15.1334,138.24,138.16,18.0941]
[1728568080906,15.1334,138.24,138.1,93.5138735]
[1728568080907,36.8134,138.24,138.06,58.75739341]
[1728568081115,45.938554,138.24,138.11,7.2405]
[1728568081303,21.68,138.22,138.06,36.2142]
[1728568081504,7.2374,138.17,138.12,7.24]
[1728568081926,7.2363,138.2,138.13,7.2393]
[1728568082122,23.776884,138.17,138.14,7.2389]
[1728568082301,15.1334,138.24,138.13,1.4478699]
[1728568082497,15.1334,138.24,138.18,18.0917]
[1728568082498,22.3673,138.24,138.18,18.0917]
[1728568082701,15.1334,138.24,138.18,18.0917]
[1728568082904,15.1334,138.24,138.15,7.2383]
[1728568083127,15.1334,138.24,138.16,1.44762591]
[1728568083316,15.1334,138.24,138.19,18.0897]
[1728568083637,15.1334,138.24,138.15,18.095]
[1728568083804,7.2345,138.23,138.17,7.2369]
[1728568084012,6.1339,138.26,138.22,7.2347]
[1728568084328,6.1339,138.26,138.13,57.3096735]
[1728568084329,13.3667,138.26,138.21,25.3233]
[1728568084529,7.232,138.28,138.21,18.0883]
[1728568084701,15.5269,138.3,138.21,18.0883]
[1728568084901,7.2319,138.28,138.21,25.3231]
[1728568085126,7.2319,138.28,138.23,7.2343]
[1728568085423,7.2319,138.28,138.21,18.0883]
[1728568085614,33.6047,138.3,138.17,18.0924]
[1728568085818,33.6047,138.3,138.14,36.1926]
[1728568086038,23.776884,138.23,138.19,25.3257]
[1728568086206,23.776884,138.23,138.19,18.0898]
[1728568086622,31.011184,138.23,138.17,7.2374]
[1728568086836,31.011184,138.23,138.16,18.0947]
[1728568086837,23.776884,138.23,138.16,18.0947]
[1728568087044,23.776884,138.25,138.2,7.2357]
[1728568087251,23.776884,138.25,138.19,25.3268]
[1728568087252,31.010284,138.25,138.19,25.3268]
[1728568087635,23.776884,138.21,138.16,18.0948]
[1728568087840,23.776884,138.25,138.16,18.0948]
[1728568088145,23.776884,138.23,138.18,7.2369]
[1728568088334,23.776884,138.23,138.16,18.0948]
[1728568088335,23.776884,138.23,138.19,7.2363]
[1728568088532,20.0,138.29,138.19,18.0909]
[1728568088848,7.2342,138.24,138.19,18.0909]
[1728568089030,7.2332,138.26,138.19,25.327]
[1728568089237,7.2334,138.25,138.2,7.2357]
[1728568089540,20.0,138.29,138.21,7.2352]
[1728568089541,7.2328,138.26,138.21,7.2352]
[1728568089745,7.2342,138.24,138.19,18.0909]
[1728568090044,7.2327,138.26,138.2,7.2358]
[1728568090301,7.2335,138.25,138.2,7.2358]
[1728568090550,7.2324,138.27,138.22,7.2348]
[1728568090725,23.776884,138.26,138.22,7.2348]
[1728568091059,7.2332,138.26,138.21,18.0873]
[1728568091247,23.776884,138.25,138.21,25.3225]
[1728568091669,23.776884,138.25,138.21,18.0873]
[1728568091941,7.232,138.28,138.22,7.2346]
[1728568092144,15.5269,138.3,138.22,7.2344]
[1728568092357,7.2332,138.26,138.21,25.3224]
[1728568092661,15.5269,138.3,138.21,18.0873]
[1728568092823,7.2328,138.26,138.21,25.3225]
[1728568093025,15.5269,138.3,138.21,25.3225]
[1728568093026,7.2322,138.27,138.22,7.2347]
[1728568093223,20.0,138.29,138.18,18.092]
[1728568093440,31.011784,138.22,138.18,18.092]
[1728568093746,31.011784,138.22,138.07,21.80845394]
[1728568093747,7.2378,138.17,138.12,7.2395]
[1728568093947,18.0881,138.22,138.11,18.1003]
[1728568094162,7.2373,138.18,138.12,7.2399]
[1728568094457,43.902374,138.21,138.11,18.1003]
[1728568094643,18.0905,138.2,138.08,18.105]
[1728568094962,18.0905,138.2,138.07,6.4152]
[1728568094963,7.2385,138.15,138.1,25.3428]
[1728568095455,23.776884,138.14,138.07,18.1064]
[1728568095633,23.776884,138.14,138.08,1.44824384]
[1728568096035,23.776884,138.14,138.09,7.2415]
[1728568096036,31.015884,138.14,138.09,7.2415]
[1728568096248,23.776884,138.14,138.1,8.68916192]
[1728568096459,23.776884,138.14,138.08,1.44808082]
[1728568096758,7.2386,138.15,138.11,7.2405]
[1728568096759,23.776884,138.15,138.11,7.2405]
[1728568097133,23.776884,138.16,138.12,7.24]
[1728568097447,20.0,138.2,138.13,1.44794938]
[1728568097642,20.0,138.2,138.15,7.2383]
[1728568097643,27.236,138.2,138.15,7.2383]
[1728568097837,7.2375,138.17,138.12,7.2399]
[1728568098140,18.0911,138.19,138.07,18.1059]
[1728568098360,41.68,138.2,138.07,18.1059]
[1728568098658,43.902374,138.16,138.07,25.3482]
[1728568099155,7.2411,138.1,138.04,18.11]
[1728568099354,43.776884,138.13,138.04,18.11]
[1728568099562,43.776884,138.13,138.07,7.2425]
[1728568099762,23.776884,138.1,138.06,25.3499]
[1728568099936,20.0,138.13,138.06,18.1068]
[1728568100142,7.2401,138.12,138.07,7.2426]
[1728568100341,7.2406,138.11,138.06,25.3498]
[1728568100537,7.2406,138.11,138.06,18.1068]
[1728568100850,23.776884,138.14,138.07,1.44841721]
[1728568101052,23.776884,138.14,138.02,79.7196735]
[1728568101361,20.0,138.18,138.08,18.1044]
[1728568101578,7.2391,138.14,138.09,8.68961475]
[1728568101775,7.238,138.16,138.12,7.24]
[1728568101951,20.0,138.18,138.1,25.3426]
[1728568101952,7.2387,138.15,138.1,25.3426]
[1728568102362,7.2387,138.15,138.11,7.2404]
[1728568102685,20.0,138.18,138.1,18.1019]
[1728568102862,21.5115,138.21,138.1,18.1019]
[1728568103170,21.5115,138.21,138.15,7.238]
[1728568103352,21.5115,138.21,138.13,18.0979]
[1728568103552,21.5115,138.21,138.1,36.2051]
[1728568103553,57.6886,138.21,138.1,18.1023]
[1728568103774,7.2386,138.15,138.1,25.343]
[1728568103988,18.0919,138.19,138.06,20.12549]
[1728568104160,7.2396,138.13,138.09,7.2415]
[1728568104677,23.902374,138.18,138.09,7.2415]
[1728568104871,23.902374,138.18,138.1,8.68875902]
[1728568105173,1.25846293,138.2,138.13,7.2394]
[1728568105389,7.2374,138.18,138.13,7.2394]
[1728568105558,21.5115,138.21,138.14,7.2388]
[1728568105559,20.0,138.2,138.14,7.2388]
[1728568105755,21.5115,138.21,138.15,1.447689]
[1728568106056,21.5115,138.21,138.12,18.0994]
[1728568106254,7.2374,138.18,138.13,7.2394]
[1728568106478,7.237,138.18,138.14,25.3358]
[1728568106772,7.237,138.18,138.14,18.097]
[1728568107173,21.5115,138.21,138.11,25.3415]
[1728568107174,7.2385,138.15,138.11,25.3415]
[1728568107559,39.6004,138.21,138.12,7.24]
[1728568107757,39.6004,138.21,138.15,7.2384]
[1728568107758,23.776884,138.18,138.15,7.2384]
[1728568107964,13.6617,138.21,138.16,7.2378]
[1728568108277,6.4259,138.21,138.15,18.0956]
[1728568108480,6.4259,138.21,138.12,25.3393]
[1728568108681,7.237,138.18,138.13,8.68716947]
[1728568108867,7.237,138.18,138.14,7.2388]
[1728568109183,7.2375,138.17,138.12,18.0993]
[1728568109386,7.238,138.16,138.12,25.3392]
[1728568109683,7.2386,138.15,138.12,18.0993]
[1728568109859,7.2391,138.14,138.1,7.241]
[1728568110356,7.2389,138.15,138.1,7.2409]
[1728568110560,7.2386,138.15,138.1,7.2407]
[1728568110872,7.2378,138.17,138.12,7.2395]
[1728568111183,7.2378,138.17,138.08,36.2083]
[1728568111184,7.237,138.18,138.09,20.0]
[1728568111487,7.238,138.16,138.12,18.0996]
[1728568111859,7.238,138.16,138.11,7.2401]
[1728568111860,36.1806,138.2,138.07,18.1056]
[1728568112074,7.2401,138.12,138.07,18.1056]
[1728568112479,7.2409,138.11,138.07,25.3481]
[1728568112662,23.776884,138.14,138.07,18.1056]
[1728568112867,39.175984,138.16,138.04,18.1099]
[1728568112868,7.2417,138.09,138.04,18.1099]
[1728568113190,7.2412,138.1,138.06,7.2431]
[1728568113881,23.776884,138.11,138.04,18.1099]
[1728568114084,7.2411,138.1,138.05,8.69164173]
[1728568114302,23.776884,138.11,138.0,0.8250125]
[1728568114584,23.776884,138.11,138.07,7.2426]
[1728568114986,31.017484,138.11,138.07,7.2426]
[1728568115192,21.8279,138.16,138.08,1.44838326]
[1728568115401,21.8279,138.16,138.05,0.12549]
[1728568115685,7.2386,138.15,138.11,7.2405]
[1728568115888,7.2391,138.14,138.1,7.2409]
[1728568116060,7.2388,138.15,138.11,7.2405]
[1728568116265,7.238,138.16,138.12,7.24]
[1728568116473,6.286,138.2,138.07,0.12549]
[1728568116474,6.286,138.2,138.09,0.12549]
[1728568116678,7.2365,138.19,138.15,7.2384]
[1728568116890,7.2359,138.2,138.16,7.2377]
[1728568117393,7.2367,138.19,138.15,18.0956]
[1728568117693,7.2364,138.19,138.14,7.2385]
[1728568117994,7.237,138.18,138.14,7.2385]
[1728568118167,7.2364,138.19,138.15,7.2384]
[1728568118988,7.2347,138.23,138.16,18.094]
[1728568119191,7.2347,138.23,138.18,7.2367]
[1728568119364,6.3006,138.24,138.16,18.094]
[1728568119567,7.2355,138.21,138.17,7.2373]
[1728568120880,6.3006,138.24,138.16,18.094]
[1728568121078,6.3006,138.24,138.11,36.2011]
[1728568121277,20.0,138.23,138.08,36.2089]
[1728568121483,20.0,138.23,138.1,18.1021]
[1728568121484,18.0888,138.21,138.1,18.1021]
[1728568121787,7.2375,138.17,138.13,7.2395]
[1728568122291,23.776884,138.2,138.14,18.0968]
[1728568122487,7.2376,138.17,138.13,7.2391]
[1728568122872,7.2369,138.18,138.14,7.239]
[1728568123086,7.2369,138.18,138.15,1.44760317]
[1728568123289,7.2347,138.23,138.18,7.2365]
[1728568123482,7.2357,138.21,138.17,18.093]
[1728568123799,6.3006,138.24,138.12,36.2]
[1728568123800,20.0,138.23,138.14,18.0966]
[1728568123973,18.0896,138.21,138.09,0.25098]
[1728568124166,56.1724,138.23,138.09,0.25098]
[1728568124167,20.0,138.23,138.15,18.0956]
[1728568124794,7.2365,138.19,138.15,18.0956]
[1728568125172,23.776884,138.22,138.15,18.0956]
[1728568125493,7.2359,138.2,138.15,18.0956]
[1728568125694,23.776884,138.23,138.11,36.2009]
[1728568126169,23.776884,138.2,138.14,18.0968]
[1728568126370,31.013184,138.2,138.15,7.2383]
[1728568126589,7.2366,138.19,138.15,7.2383]
[1728568126995,23.776884,138.2,138.11,18.1011]
[1728568127301,7.2388,138.15,138.11,18.1011]
[1728568127595,7.2373,138.18,138.13,7.2391]
[1728568129001,7.2373,138.18,138.14,1.4476443]
[1728568129379,7.2373,138.18,138.14,8.6866443]
[1728568130083,7.2373,138.18,138.13,18.0986]
[1728568130289,7.2373,138.18,138.13,25.3379]
[1728568131405,23.776884,138.21,138.07,78.99590069]
[1728568131702,7.2404,138.12,138.08,7.2421]
[1728568131912,24.3596,138.16,138.03,21.2124]
[1728568131913,7.2417,138.09,138.05,7.2436]
[1728568132074,7.2431,138.07,138.01,36.2287]
[1728568132399,7.2427,138.07,138.03,7.2444]
[1728568132998,7.2427,138.07,138.04,1.44862009]
[1728568133375,7.2427,138.07,138.03,8.69302298]
[1728568133570,7.2423,138.08,138.04,7.244]
[1728568133795,7.2423,138.08,138.03,25.3558]
[1728568134179,7.2423,138.08,138.04,1.44862275]
[1728568134381,7.2423,138.08,138.04,8.69272275]
[1728568134573,7.2417,138.09,138.05,7.2437]
[1728568134774,18.0998,138.13,138.06,1.44846159]
[1728568134982,7.2409,138.11,138.07,7.2425]
[1728568135394,24.3601,138.16,138.08,8.69041375]
[1728568135587,7.2404,138.12,138.07,18.1061]
[1728568135789,7.2404,138.12,138.07,25.3486]
[1728568136188,7.2396,138.13,138.08,1.44821963]
[1728568136389,6.2643,138.16,138.09,18.1033]
[1728568136684,7.2396,138.13,138.09,25.3448]
[1728568137188,6.2643,138.16,138.06,18.107]
[1728568137385,7.2406,138.11,138.07,7.2426]
[1728568138094,7.24,138.12,138.08,7.2418]
[1728568138404,7.2395,138.13,138.09,7.2412]
[1728568138712,7.2395,138.13,138.09,7.2415]
[1728568139205,7.2395,138.13,138.09,8.6896169]
[1728568139412,7.2391,138.14,138.1,7.241]
[1728568139611,7.2391,138.14,138.09,7.2412]
[1728568139980,23.776884,138.15,138.08,25.3464]
[1728568140179,7.2397,138.13,138.09,7.2416]
[1728568140683,7.2416,138.1,138.03,36.222]
[1728568140890,7.2416,138.09,138.05,25.3521]
[1728568141085,43.776884,138.13,138.05,18.1086]
[1728568141307,23.776884,138.13,138.05,18.1086]
[1728568141489,7.2417,138.09,138.05,25.3519]
[1728568141888,23.776884,138.13,138.05,18.1086]
[1728568142105,7.2427,138.07,138.03,7.2446]
[1728568142309,23.776884,138.09,138.02,18.1125]
[1728568142517,7.2443,138.04,138.0,8.0712125]
[1728568142693,24.3249,138.08,138.01,7.2455]
[1728568142694,7.2438,138.05,138.01,7.2455]
[1728568142896,7.2432,138.06,138.02,8.69418523]
[1728568143081,7.2434,138.06,138.02,1.44898523]
[1728568143280,23.776884,138.07,138.0,0.8250125]
[1728568143494,7.2452,138.03,138.0,0.8250125]
[1728568143724,23.776884,138.05,138.0,0.8250125]
[1728568143904,13.6018,138.01,138.0,0.8250125]
[1728568144095,57.378684,138.01,138.0,0.8250125]
[1728568144733,57.378684,138.01,137.93,18.1244]
[1728568144734,30.132884,138.01,137.93,18.1244]
[1728568145009,30.132884,138.01,137.94,1.44954837]
[1728568145210,7.2448,138.03,137.98,7.2472]
[1728568145385,23.776884,138.02,137.91,35.37695114]
[1728568145588,23.776884,138.02,137.92,1.44939951]
[1728568145915,6.5402,138.05,138.01,7.2457]
[1728568146117,13.7843,138.05,138.0,7.2462]
[1728568146289,13.7843,138.05,138.01,7.2457]
[1728568146807,6.5402,138.05,137.96,18.1206]
[1728568147015,7.2449,138.03,137.97,1.44936492]
[1728568147195,7.2462,138.01,137.96,7.248]
[1728568147389,6.5402,138.05,137.96,7.248]
[1728568147390,6.5402,138.05,137.96,18.1208]
[1728568147587,20.0,138.04,137.96,25.3691]
[1728568147792,7.2465,138.0,137.96,25.3691]
[1728568147987,7.2474,137.98,137.93,25.374]
[1728568148296,23.776884,138.03,137.93,25.374]
[1728568148297,7.2473,137.99,137.94,8.69871811]
[1728568148505,7.2475,137.98,137.93,25.3743]
[1728568148891,7.2464,138.0,137.96,7.2484]
[1728568149089,23.776884,138.03,137.91,36.2531]
[1728568149288,31.023084,138.01,137.97,18.1192]
[1728568149602,6.5402,138.05,137.97,18.1192]
[1728568149792,7.2462,138.01,137.97,18.1192]
[1728568149993,6.5402,138.05,137.91,93.71369099]
[1728568150209,7.2465,138.0,137.95,7.2488]
[1728568150708,7.2476,137.98,137.94,25.3731]
[1728568151022,7.2472,137.99,137.95,7.2489]
[1728568151195,7.2472,137.99,137.95,8.69853039]
[1728568151531,23.776884,138.03,137.96,19.56998466]
[1728568151698,23.776884,138.03,137.97,7.2477]
[1728568151892,6.5402,138.05,137.96,1.44958466]
[1728568152093,6.5402,138.05,137.98,18.118]
[1728568152407,6.5402,138.05,137.99,8.69579164]
[1728568152610,7.2454,138.02,137.98,25.3653]
[1728568152911,7.2467,138.0,137.95,18.1216]
[1728568153110,6.5402,138.05,137.95,18.1216]
[1728568153111,18.1112,138.04,137.95,18.1216]
[1728568153303,7.2475,137.98,137.92,18.1255]
[1728568153496,7.2475,137.98,137.94,7.2493]
[1728568153702,23.776884,137.99,137.95,7.2485]
[1728568153885,7.2471,137.99,137.94,18.1234]
[1728568154089,7.248,137.97,137.91,54.3802]
[1728568154318,7.2475,137.98,137.94,7.2494]
[1728568154615,23.776884,138.01,137.96,7.2481]
[1728568154616,31.022884,138.01,137.96,7.2481]
[1728568154817,23.776884,138.01,137.95,18.1219]
[1728568154989,7.2465,138.0,137.95,25.3704]
[1728568155411,7.2465,138.0,137.96,7.2483]
[1728568155996,6.5402,138.05,137.97,18.1194]
[1728568156911,6.5402,138.05,137.99,18.1165]
[1728568157135,7.245,138.03,137.99,25.3628]
[1728568157689,7.2454,138.02,137.98,7.2472]
[1728568157889,7.2446,138.04,137.99,7.2466]
[1728568158103,6.5402,138.05,138.0,1.44912348]
[1728568158327,15.7465,138.06,137.97,36.2376]
[1728568158523,7.2429,138.07,138.02,25.3577]
[1728568158714,6.3335,138.08,137.97,108.72629099]
[1728568158895,24.4393,138.08,137.97,108.72629099]
[1728568159097,7.2439,138.05,138.01,18.1142]
[1728568159519,6.3335,138.08,138.01,18.1142]
[1728568160107,6.3335,138.08,138.01,25.3595]
[1728568160306,7.2438,138.05,138.01,25.3595]
[1728568160507,23.776884,138.07,138.01,25.3595]
[1728568160734,7.2436,138.06,138.01,25.3595]
[1728568161017,31.020084,138.07,138.02,8.69409985]
[1728568161214,7.2434,138.06,138.02,7.2452]
[1728568161421,7.2437,138.05,138.01,25.3597]
[1728568161919,7.2433,138.06,138.02,8.69380318]
[1728568162102,7.2433,138.06,138.02,7.2449]
[1728568162591,23.776884,138.07,138.02,1.44889824]
[1728568162796,7.2438,138.05,138.01,25.3598]
[1728568163220,23.776884,138.07,137.98,18.1178]
[1728568163528,23.776884,138.05,137.94,36.2457]
[1728568163720,7.246,138.01,137.95,19.57078617]
[1728568164733,23.776884,138.05,137.98,7.2473]
[1728568165026,23.776884,138.02,137.99,7.2468]
[1728568165207,18.1077,138.07,137.98,1.44927294]
[1728568165410,18.1077,138.07,137.94,36.2457]
[1728568165411,7.245,138.03,137.99,18.1167]
[1728568165611,7.245,138.03,137.99,25.3635]
[1728568165925,23.776884,138.07,138.01,25.3596]
[1728568166130,7.2433,138.06,138.02,7.2452]
[1728568166425,7.2433,138.06,138.01,25.3595]
[1728568166726,7.2433,138.06,138.02,7.2452]
[1728568167120,0.42800141,138.1,138.03,19.5605991]
[1728568167332,0.42800141,138.1,138.02,7.2449]
[1728568167333,7.2433,138.06,138.02,7.2449]
[1728568167900,0.42800141,138.1,138.03,1.44881623]
[1728568168121,33.2256,138.11,138.03,8.69341623]
[1728568168122,7.2422,138.08,138.03,8.69341623]
[1728568168333,7.2422,138.08,138.04,7.2442]
[1728568168503,7.2422,138.08,138.03,7.2446]
[1728568169222,7.2416,138.1,138.05,7.2436]
[1728568169528,21.7718,138.11,138.05,7.2436]
[1728568169703,7.2417,138.09,138.04,18.1103]
[1728568169905,7.2417,138.09,138.04,25.3544]
[1728568170102,21.7718,138.11,138.04,25.3544]
[1728568170103,7.2423,138.08,138.04,25.3544]
[1728568170807,23.776884,138.08,138.04,18.1103]
[1728568171017,23.776884,138.08,138.04,25.3544]
[1728568171219,31.019084,138.08,138.04,25.3544]
[1728568172506,7.2417,138.09,138.04,25.3544]
[1728568172908,7.2423,138.08,138.04,18.1103]
[1728568173829,7.2423,138.08,138.04,19.55898665]
[1728568174003,7.2423,138.08,138.04,18.1103]
[1728568174609,23.776884,138.1,138.04,18.1103]
[1728568174820,31.018184,138.1,138.04,18.1103]
[1728568175017,7.2418,138.09,138.04,18.1103]
[1728568175303,7.2422,138.08,138.04,25.3544]
[1728568175625,7.2428,138.07,138.03,7.2446]
[1728568176847,7.2423,138.08,137.98,36.237]
[1728568177140,7.2418,138.09,138.04,7.244]
[1728568177727,29.0125,138.11,138.07,7.2426]
[1728568177933,8.26915118,138.13,138.08,8.69019062]
[1728568177934,7.2399,138.13,138.08,8.69019062]
[1728568178113,7.2404,138.12,138.07,25.349]